[Event "Titled Tuesday Blitz August 15 Early 2023"]
[White "Sarkar, Justin"]
[Black "Daeschler, Florian"]
[WhiteFideId "2010011"]
[BlackFideId "20678193"]
[WhiteElo "2245"]
[BlackElo "2404"]
[Result "1-0"]
[Round "7"]
[TimeControl "180+1"]
[Date "2023.08.15"]
[WhiteClock "0:00:02"]
[BlackClock "0:00:01"]
[Board "157"]

1. d4 {[%clk 0:02:54]}  d5 {[%clk 0:03:00]} 2. c4 {[%clk 0:02:53]}  e6 {[%clk 0:03:00]} 3. Nc3 {[%clk 0:02:53]}  c5 {[%clk 0:03:00]} 4. cxd5 {[%clk 0:02:48]}  exd5 {[%clk 0:03:01]} 5. Nf3 {[%clk 0:02:41]}  Nc6 {[%clk 0:03:00]} 6. Bg5 {[%clk 0:02:29]}  Nf6 {[%clk 0:02:53]} 7. e3 {[%clk 0:02:19]}  c4 {[%clk 0:02:53]} 8. Bxf6 {[%clk 0:02:11]}  gxf6 {[%clk 0:02:52]} 9. e4 {[%clk 0:02:04]}  Bb4 {[%clk 0:02:47]} 10. exd5 {[%clk 0:01:58]}  Qxd5 {[%clk 0:02:46]} 11. Be2 {[%clk 0:01:55]}  Be6 {[%clk 0:02:38]} 12. O-O {[%clk 0:01:55]}  Bxc3 {[%clk 0:02:38]} 13. bxc3 {[%clk 0:01:55]}  Rg8 {[%clk 0:02:39]} 14. g3 {[%clk 0:01:47]}  O-O-O {[%clk 0:02:33]} 15. Nd2 {[%clk 0:01:37]}  Ne5 {[%clk 0:02:00]} 16. Nf3 {[%clk 0:00:51]}  Bh3 {[%clk 0:01:54]} 17. dxe5 {[%clk 0:00:46]}  Bxf1 {[%clk 0:01:39]} 18. Qxf1 {[%clk 0:00:45]}  fxe5 {[%clk 0:01:37]} 19. Nh4 {[%clk 0:00:35]}  b5 {[%clk 0:01:29]} 20. a4 {[%clk 0:00:33]}  Qe4 {[%clk 0:01:27]} 21. Qh3+ {[%clk 0:00:29]}  Kb8 {[%clk 0:01:24]} 22. Bf3 {[%clk 0:00:26]}  Qc2 {[%clk 0:01:21]} 23. axb5 {[%clk 0:00:21]}  Qxc3 {[%clk 0:01:21]} 24. Rf1 {[%clk 0:00:16]}  Rd4 {[%clk 0:01:09]} 25. Bc6 {[%clk 0:00:07]}  Qd2 {[%clk 0:00:43]} 26. Qf5 {[%clk 0:00:04]}  f6 {[%clk 0:00:10]} 27. Qxf6 {[%clk 0:00:04]}  Rgd8 {[%clk 0:00:04]} 28. Qxe5+ {[%clk 0:00:03]}  R4d6 {[%clk 0:00:05]} 29. Nf5 {[%clk 0:00:03]}  Kc7 {[%clk 0:00:05]} 30. Nxd6 {[%clk 0:00:03]}  Rxd6 {[%clk 0:00:06]} 31. Qe7+ {[%clk 0:00:02]}  Kb6 {[%clk 0:00:06]} 32. Qb7+ {[%clk 0:00:02]}  Kc5 {[%clk 0:00:07]} 33. Qxa7+ {[%clk 0:00:02]}  Kb4 {[%clk 0:00:07]} 34. Ra1 {[%clk 0:00:02]}  c3 {[%clk 0:00:06]} 35. Qa5+ {[%clk 0:00:02]}  Kc4 {[%clk 0:00:06]} 36. b6 {[%clk 0:00:02]}  c2 {[%clk 0:00:06]} 37. Qa6+ {[%clk 0:00:01]}  Kc5 {[%clk 0:00:04]} 38. Qb5+ {[%clk 0:00:02]}  Kd4 {[%clk 0:00:04]} 39. Ra4+ {[%clk 0:00:02]}  Kc3 {[%clk 0:00:02]} 40. Qc4+ {[%clk 0:00:02]}  Kb2 {[%clk 0:00:03]} 41. Qa2+ {[%clk 0:00:02]}  Kc1 {[%clk 0:00:01]} 42. Qa1# {[%clk 0:00:02]} 1-0


[Site "https://www.chess.com"]

[Event "Titled Tuesday Blitz August 15 Early 2023"]
[White "Namitbir Singh Walia"]
[Black "Clawitter, Craig"]
[WhiteFideId "35071068"]
[BlackFideId "2023105"]
[WhiteElo "2399"]
[BlackElo "2248"]
[Result "1-0"]
[Round "7"]
[TimeControl "180+1"]
[Date "2023.08.15"]
[WhiteClock "0:00:20"]
[BlackClock "0:00:12"]
[Board "158"]

1. e4 {[%clk 0:03:00]}  e6 {[%clk 0:02:59]} 2. d4 {[%clk 0:03:00]}  d5 {[%clk 0:02:57]} 3. Nd2 {[%clk 0:03:01]}  Be7 {[%clk 0:02:57]} 4. Bd3 {[%clk 0:02:58]}  c5 {[%clk 0:02:56]} 5. dxc5 {[%clk 0:02:57]}  Nf6 {[%clk 0:02:56]} 6. Ngf3 {[%clk 0:02:51]}  dxe4 {[%clk 0:02:49]} 7. Nxe4 {[%clk 0:02:51]}  Nxe4 {[%clk 0:02:49]} 8. Bxe4 {[%clk 0:02:52]}  Qxd1+ {[%clk 0:02:49]} 9. Kxd1 {[%clk 0:02:52]}  Bxc5 {[%clk 0:02:50]} 10. Ke2 {[%clk 0:02:52]}  Nc6 {[%clk 0:02:50]} 11. c3 {[%clk 0:02:51]}  Bd7 {[%clk 0:02:40]} 12. Be3 {[%clk 0:02:38]}  Bb6 {[%clk 0:02:40]} 13. Rhd1 {[%clk 0:02:36]}  O-O-O {[%clk 0:02:37]} 14. Bxb6 {[%clk 0:02:32]}  axb6 {[%clk 0:02:37]} 15. Rd2 {[%clk 0:02:18]}  f6 {[%clk 0:02:10]} 16. Rad1 {[%clk 0:02:17]}  Kc7 {[%clk 0:02:04]} 17. h4 {[%clk 0:02:04]}  h6 {[%clk 0:01:46]} 18. Ke3 {[%clk 0:01:27]}  Bc8 {[%clk 0:01:30]} 19. Rxd8 {[%clk 0:01:22]}  Rxd8 {[%clk 0:01:30]} 20. Rxd8 {[%clk 0:01:22]}  Kxd8 {[%clk 0:01:27]} 21. h5 {[%clk 0:01:17]}  Kc7 {[%clk 0:01:18]} 22. g4 {[%clk 0:01:09]}  Kd6 {[%clk 0:01:16]} 23. Bd3 {[%clk 0:01:02]}  Ne5 {[%clk 0:01:10]} 24. Nxe5 {[%clk 0:01:01]}  Kxe5 {[%clk 0:01:11]} 25. f4+ {[%clk 0:01:01]}  Kd6 {[%clk 0:01:05]} 26. Be4 {[%clk 0:00:52]}  e5 {[%clk 0:00:31]} 27. f5 {[%clk 0:00:46]}  b5 {[%clk 0:00:22]} 28. Kd3 {[%clk 0:00:42]}  b6 {[%clk 0:00:20]} 29. b4 {[%clk 0:00:32]}  Bd7 {[%clk 0:00:20]} 30. Kc2 {[%clk 0:00:32]}  Be8 {[%clk 0:00:20]} 31. Kb2 {[%clk 0:00:27]}  Bf7 {[%clk 0:00:19]} 32. Bd3 {[%clk 0:00:23]}  Bc4 {[%clk 0:00:18]} 33. Bxc4 {[%clk 0:00:15]}  bxc4 {[%clk 0:00:19]} 34. a4 {[%clk 0:00:16]}  Kd5 {[%clk 0:00:18]} 35. Kc2 {[%clk 0:00:16]}  Ke4 {[%clk 0:00:17]} 36. Kd2 {[%clk 0:00:15]}  Kf3 {[%clk 0:00:16]} 37. a5 {[%clk 0:00:15]}  bxa5 {[%clk 0:00:13]} 38. bxa5 {[%clk 0:00:16]}  Kf2 {[%clk 0:00:13]} 39. a6 {[%clk 0:00:17]}  e4 {[%clk 0:00:13]} 40. a7 {[%clk 0:00:17]}  e3+ {[%clk 0:00:14]} 41. Kc2 {[%clk 0:00:17]}  e2 {[%clk 0:00:15]} 42. a8=Q {[%clk 0:00:17]}  e1=Q {[%clk 0:00:15]} 43. Qa7+ {[%clk 0:00:14]}  Kf1 {[%clk 0:00:15]} 44. Qd4 {[%clk 0:00:14]}  Qe2+ {[%clk 0:00:15]} 45. Kc1 {[%clk 0:00:13]}  Qe1+ {[%clk 0:00:14]} 46. Kb2 {[%clk 0:00:13]}  Qe2+ {[%clk 0:00:14]} 47. Ka3 {[%clk 0:00:13]}  Qd3 {[%clk 0:00:14]} 48. Kb4 {[%clk 0:00:13]}  Ke2 {[%clk 0:00:12]} 49. Qxc4 {[%clk 0:00:13]}  Qxc4+ {[%clk 0:00:11]} 50. Kxc4 {[%clk 0:00:14]}  Kf3 {[%clk 0:00:11]} 51. Kd4 {[%clk 0:00:14]}  Kxg4 {[%clk 0:00:12]} 52. c4 {[%clk 0:00:15]}  Kxf5 {[%clk 0:00:12]} 53. Kd5 {[%clk 0:00:16]}  Kg4 {[%clk 0:00:08]} 54. c5 {[%clk 0:00:16]}  f5 {[%clk 0:00:09]} 55. c6 {[%clk 0:00:17]}  f4 {[%clk 0:00:09]} 56. c7 {[%clk 0:00:17]}  f3 {[%clk 0:00:10]} 57. c8=Q+ {[%clk 0:00:18]}  Kg3 {[%clk 0:00:10]} 58. Qc7+ {[%clk 0:00:18]}  Kg2 {[%clk 0:00:10]} 59. Qxg7+ {[%clk 0:00:18]}  Kf1 {[%clk 0:00:11]} 60. Qa1+ {[%clk 0:00:18]}  Kg2 {[%clk 0:00:11]} 61. Qg7+ {[%clk 0:00:18]}  Kf1 {[%clk 0:00:11]} 62. Qxh6 {[%clk 0:00:18]}  f2 {[%clk 0:00:12]} 63. Qf4 {[%clk 0:00:19]}  Kg2 {[%clk 0:00:12]} 64. h6 {[%clk 0:00:18]}  f1=Q {[%clk 0:00:12]} 65. Qxf1+ {[%clk 0:00:19]}  Kxf1 {[%clk 0:00:12]} 66. h7 {[%clk 0:00:20]} 1-0


[Site "https://www.chess.com"]

[Event "Titled Tuesday Blitz August 15 Early 2023"]
[White "Rom, Jasper"]
[Black "Fernandez Hernandez, Gerardo"]
[WhiteFideId "2023733"]
[BlackFideId "2207400"]
[WhiteElo "2398"]
[BlackElo "2234"]
[Result "1-0"]
[Round "7"]
[TimeControl "180+1"]
[Date "2023.08.15"]
[WhiteClock "0:00:11"]
[BlackClock "0:00:00"]
[Board "159"]

1. e4 {[%clk 0:03:00]}  e6 {[%clk 0:02:59]} 2. d4 {[%clk 0:03:00]}  d5 {[%clk 0:03:00]} 3. Bd3 {[%clk 0:03:00]}  c5 {[%clk 0:02:59]} 4. exd5 {[%clk 0:02:59]}  exd5 {[%clk 0:02:59]} 5. Nf3 {[%clk 0:02:55]}  c4 {[%clk 0:02:59]} 6. Be2 {[%clk 0:02:55]}  Nf6 {[%clk 0:02:54]} 7. b3 {[%clk 0:02:55]}  cxb3 {[%clk 0:02:52]} 8. axb3 {[%clk 0:02:56]}  Nc6 {[%clk 0:02:46]} 9. O-O {[%clk 0:02:56]}  Bd6 {[%clk 0:02:44]} 10. c4 {[%clk 0:02:54]}  O-O {[%clk 0:02:36]} 11. h3 {[%clk 0:02:53]}  Re8 {[%clk 0:02:35]} 12. Nc3 {[%clk 0:02:52]}  Bb4 {[%clk 0:02:22]} 13. Bb2 {[%clk 0:02:42]}  Bf5 {[%clk 0:02:15]} 14. Bd3 {[%clk 0:02:33]}  Qd7 {[%clk 0:01:51]} 15. Nb5 {[%clk 0:02:26]}  Bxd3 {[%clk 0:01:41]} 16. Qxd3 {[%clk 0:02:24]}  a6 {[%clk 0:01:41]} 17. Nc3 {[%clk 0:02:22]}  Bxc3 {[%clk 0:01:39]} 18. Bxc3 {[%clk 0:02:21]}  Ne4 {[%clk 0:01:11]} 19. Rfe1 {[%clk 0:02:19]}  Rad8 {[%clk 0:01:06]} 20. c5 {[%clk 0:02:00]}  f6 {[%clk 0:00:53]} 21. b4 {[%clk 0:01:39]}  Na7 {[%clk 0:00:48]} 22. Bb2 {[%clk 0:01:37]}  Qb5 {[%clk 0:00:46]} 23. Qb3 {[%clk 0:01:34]}  Nc6 {[%clk 0:00:32]} 24. Ba3 {[%clk 0:01:21]}  a5 {[%clk 0:00:31]} 25. Rab1 {[%clk 0:01:19]}  axb4 {[%clk 0:00:24]} 26. Bxb4 {[%clk 0:01:18]}  Ra8 {[%clk 0:00:24]} 27. Ba3 {[%clk 0:01:08]}  Qxb3 {[%clk 0:00:24]} 28. Rxb3 {[%clk 0:01:08]}  Kf7 {[%clk 0:00:14]} 29. Rxb7+ {[%clk 0:01:05]}  Re7 {[%clk 0:00:13]} 30. Rb3 {[%clk 0:01:01]}  Rea7 {[%clk 0:00:13]} 31. Bb2 {[%clk 0:00:57]}  Rb8 {[%clk 0:00:07]} 32. Ree3 {[%clk 0:00:49]}  Rab7 {[%clk 0:00:05]} 33. Rxb7+ {[%clk 0:00:45]}  Rxb7 {[%clk 0:00:06]} 34. Re2 {[%clk 0:00:43]}  Nb4 {[%clk 0:00:05]} 35. Nd2 {[%clk 0:00:34]}  Nxd2 {[%clk 0:00:03]} 36. Rxd2 {[%clk 0:00:34]}  Nc6 {[%clk 0:00:03]} 37. Kf1 {[%clk 0:00:32]}  Rb4 {[%clk 0:00:01]} 38. Ke2 {[%clk 0:00:31]}  Ke6 {[%clk 0:00:02]} 39. Kd3 {[%clk 0:00:31]}  Kf5 {[%clk 0:00:01]} 40. Bc3 {[%clk 0:00:27]}  Rb3 {[%clk 0:00:01]} 41. Rb2 {[%clk 0:00:12]}  Rb5 {[%clk 0:00:00]} 42. Rxb5 {[%clk 0:00:11]} 1-0


[Site "https://www.chess.com"]

[Event "Titled Tuesday Blitz August 15 Early 2023"]
[White "Fernandez Garcia, Gumersindo"]
[Black "campochess"]
[WhiteFideId "24516740"]
[WhiteElo "2392"]
[BlackElo "2173"]
[Result "1-0"]
[Round "7"]
[TimeControl "180+1"]
[Date "2023.08.15"]
[WhiteClock "0:00:04"]
[BlackClock "0:00:41"]
[Board "161"]

1. e4 {[%clk 0:03:00]}  c5 {[%clk 0:02:57]} 2. Nf3 {[%clk 0:03:00]}  Nc6 {[%clk 0:02:57]} 3. d4 {[%clk 0:03:00]}  cxd4 {[%clk 0:02:57]} 4. Nxd4 {[%clk 0:03:01]}  e5 {[%clk 0:02:57]} 5. Nb5 {[%clk 0:02:59]}  a6 {[%clk 0:02:57]} 6. Nd6+ {[%clk 0:02:58]}  Bxd6 {[%clk 0:02:57]} 7. Qxd6 {[%clk 0:02:59]}  Qe7 {[%clk 0:02:57]} 8. Qxe7+ {[%clk 0:02:50]}  Ngxe7 {[%clk 0:02:56]} 9. Nc3 {[%clk 0:02:30]}  d5 {[%clk 0:02:55]} 10. Nxd5 {[%clk 0:02:19]}  Nxd5 {[%clk 0:02:54]} 11. exd5 {[%clk 0:02:20]}  Nb4 {[%clk 0:02:54]} 12. Kd1 {[%clk 0:02:13]}  Bf5 {[%clk 0:02:53]} 13. Bd2 {[%clk 0:02:08]}  Nxc2 {[%clk 0:02:50]} 14. Rc1 {[%clk 0:02:07]}  Nd4 {[%clk 0:02:50]} 15. Rc7 {[%clk 0:01:36]}  O-O {[%clk 0:02:41]} 16. Bc3 {[%clk 0:01:29]}  Rfd8 {[%clk 0:02:36]} 17. Bxd4 {[%clk 0:01:22]}  Rxd5 {[%clk 0:02:36]} 18. Bc4 {[%clk 0:00:59]}  Rxd4+ {[%clk 0:02:35]} 19. Ke2 {[%clk 0:01:00]}  Bg6 {[%clk 0:02:30]} 20. Rc1 {[%clk 0:00:59]}  Rad8 {[%clk 0:02:29]} 21. Rxb7 {[%clk 0:00:53]}  Rxc4 {[%clk 0:02:25]} 22. Rxc4 {[%clk 0:00:47]}  Bd3+ {[%clk 0:02:25]} 23. Ke3 {[%clk 0:00:41]}  Bxc4 {[%clk 0:02:25]} 24. b3 {[%clk 0:00:42]}  Bd5 {[%clk 0:02:25]} 25. Rb6 {[%clk 0:00:41]}  f5 {[%clk 0:02:19]} 26. Rxa6 {[%clk 0:00:39]}  f4+ {[%clk 0:02:18]} 27. Ke2 {[%clk 0:00:39]}  Bxg2 {[%clk 0:02:13]} 28. f3 {[%clk 0:00:40]}  e4 {[%clk 0:02:12]} 29. fxe4 {[%clk 0:00:40]}  Bxe4 {[%clk 0:02:11]} 30. Re6 {[%clk 0:00:40]}  Bb1 {[%clk 0:02:04]} 31. a4 {[%clk 0:00:37]}  Bc2 {[%clk 0:02:03]} 32. Rb6 {[%clk 0:00:35]}  g5 {[%clk 0:02:01]} 33. a5 {[%clk 0:00:35]}  g4 {[%clk 0:02:01]} 34. a6 {[%clk 0:00:31]}  f3+ {[%clk 0:01:54]} 35. Ke3 {[%clk 0:00:31]}  Re8+ {[%clk 0:01:50]} 36. Kf2 {[%clk 0:00:30]}  Re2+ {[%clk 0:01:50]} 37. Kg3 {[%clk 0:00:20]}  Rg2+ {[%clk 0:01:49]} 38. Kh4 {[%clk 0:00:20]}  f2 {[%clk 0:01:49]} 39. a7 {[%clk 0:00:18]}  Be4 {[%clk 0:01:41]} 40. Rf6 {[%clk 0:00:18]}  Kg7 {[%clk 0:01:28]} 41. Rf4 {[%clk 0:00:16]}  Ba8 {[%clk 0:01:23]} 42. b4 {[%clk 0:00:14]}  Kg6 {[%clk 0:01:22]} 43. b5 {[%clk 0:00:14]}  h5 {[%clk 0:01:19]} 44. b6 {[%clk 0:00:12]}  Rxh2+ {[%clk 0:01:18]} 45. Kg3 {[%clk 0:00:13]}  Rh3+ {[%clk 0:01:17]} 46. Kxf2 {[%clk 0:00:13]}  Rb3 {[%clk 0:01:17]} 47. Rf8 {[%clk 0:00:11]}  Bd5 {[%clk 0:01:13]} 48. Rd8 {[%clk 0:00:10]}  Be4 {[%clk 0:01:09]} 49. Re8 {[%clk 0:00:10]}  Kf5 {[%clk 0:01:07]} 50. Rxe4 {[%clk 0:00:09]}  Kxe4 {[%clk 0:01:02]} 51. a8=Q+ {[%clk 0:00:09]}  Kf4 {[%clk 0:01:00]} 52. Qb8+ {[%clk 0:00:10]}  Kg5 {[%clk 0:00:59]} 53. Qe5+ {[%clk 0:00:10]}  Kh4 {[%clk 0:00:58]} 54. Qe7+ {[%clk 0:00:07]}  Kh3 {[%clk 0:00:57]} 55. Ke2 {[%clk 0:00:04]}  Rxb6 {[%clk 0:00:52]} 56. Qe3+ {[%clk 0:00:04]}  Kh2 {[%clk 0:00:51]} 57. Qxb6 {[%clk 0:00:04]}  h4 {[%clk 0:00:49]} 58. Qf2+ {[%clk 0:00:03]}  Kh3 {[%clk 0:00:47]} 59. Kf1 {[%clk 0:00:02]}  g3 {[%clk 0:00:47]} 60. Qg2+ {[%clk 0:00:02]}  Kg4 {[%clk 0:00:46]} 61. Qe4+ {[%clk 0:00:03]}  Kg5 {[%clk 0:00:46]} 62. Kg1 {[%clk 0:00:03]}  h3 {[%clk 0:00:45]} 63. Qe3+ {[%clk 0:00:03]}  Kg4 {[%clk 0:00:45]} 64. Qe4+ {[%clk 0:00:03]}  Kg5 {[%clk 0:00:45]} 65. Qf3 {[%clk 0:00:04]}  Kh4 {[%clk 0:00:41]} 66. Qf4+ {[%clk 0:00:04]} 1-0


[Site "https://www.chess.com"]

[Event "Titled Tuesday Blitz August 15 Early 2023"]
[White "Topalov, Aleksandar"]
[Black "Larina, Maria"]
[WhiteFideId "925659"]
[BlackFideId "24113182"]
[WhiteElo "2364"]
[BlackElo "2123"]
[Result "1-0"]
[Round "7"]
[TimeControl "180+1"]
[Date "2023.08.15"]
[WhiteClock "0:00:15"]
[BlackClock "0:00:00"]
[Board "165"]

1. b3 {[%clk 0:02:44]}  e5 {[%clk 0:02:59]} 2. Bb2 {[%clk 0:02:40]}  d6 {[%clk 0:02:59]} 3. d4 {[%clk 0:02:40]}  exd4 {[%clk 0:02:43]} 4. Qxd4 {[%clk 0:02:37]}  Nc6 {[%clk 0:02:41]} 5. Qf4 {[%clk 0:02:37]}  Qd7 {[%clk 0:02:20]} 6. Nc3 {[%clk 0:02:32]}  Nf6 {[%clk 0:02:13]} 7. Nf3 {[%clk 0:02:29]}  Be7 {[%clk 0:02:06]} 8. O-O-O {[%clk 0:02:26]}  Qf5 {[%clk 0:01:58]} 9. Qd2 {[%clk 0:02:23]}  O-O {[%clk 0:01:45]} 10. e4 {[%clk 0:02:21]}  Qd7 {[%clk 0:01:19]} 11. h3 {[%clk 0:01:56]}  b6 {[%clk 0:00:54]} 12. Bb5 {[%clk 0:01:49]}  a6 {[%clk 0:00:53]} 13. Bc4 {[%clk 0:01:42]}  b5 {[%clk 0:00:50]} 14. Bd5 {[%clk 0:01:39]}  Bb7 {[%clk 0:00:50]} 15. e5 {[%clk 0:01:30]}  Nxd5 {[%clk 0:00:44]} 16. Nxd5 {[%clk 0:01:26]}  Rad8 {[%clk 0:00:22]} 17. Rhe1 {[%clk 0:01:18]}  Rfe8 {[%clk 0:00:20]} 18. Nxe7+ {[%clk 0:01:13]}  Rxe7 {[%clk 0:00:17]} 19. Qg5 {[%clk 0:01:10]}  h6 {[%clk 0:00:15]} 20. Qg3 {[%clk 0:01:07]}  g6 {[%clk 0:00:07]} 21. h4 {[%clk 0:01:01]}  Kh7 {[%clk 0:00:06]} 22. h5 {[%clk 0:01:00]}  Rg8 {[%clk 0:00:04]} 23. hxg6+ {[%clk 0:00:50]}  fxg6 {[%clk 0:00:02]} 24. exd6 {[%clk 0:00:44]}  Rxe1 {[%clk 0:00:03]} 25. Nxe1 {[%clk 0:00:33]}  cxd6 {[%clk 0:00:03]} 26. Rxd6 {[%clk 0:00:31]}  Qf7 {[%clk 0:00:03]} 27. Qc3 {[%clk 0:00:20]}  Rc8 {[%clk 0:00:00]} 28. Kb1 {[%clk 0:00:15]} 1-0


[Site "https://www.chess.com"]

[Event "Titled Tuesday Blitz August 15 Early 2023"]
[White "arturdailima"]
[Black "Nikulina, Alena"]
[BlackFideId "4172051"]
[WhiteElo "2355"]
[BlackElo "2075"]
[Result "1-0"]
[Round "7"]
[TimeControl "180+1"]
[Date "2023.08.15"]
[WhiteClock "0:00:59"]
[BlackClock "0:00:03"]
[Board "166"]

1. e4 {[%clk 0:03:00]}  c5 {[%clk 0:02:57]} 2. Nf3 {[%clk 0:03:01]}  e6 {[%clk 0:02:55]} 3. d4 {[%clk 0:02:56]}  cxd4 {[%clk 0:02:54]} 4. Nxd4 {[%clk 0:02:57]}  Nf6 {[%clk 0:02:54]} 5. Nc3 {[%clk 0:02:56]}  Nc6 {[%clk 0:02:54]} 6. Nxc6 {[%clk 0:02:57]}  bxc6 {[%clk 0:02:54]} 7. e5 {[%clk 0:02:58]}  Nd5 {[%clk 0:02:54]} 8. Ne4 {[%clk 0:02:58]}  Qc7 {[%clk 0:02:54]} 9. f4 {[%clk 0:02:59]}  Qb6 {[%clk 0:02:53]} 10. c4 {[%clk 0:02:59]}  Bb4+ {[%clk 0:02:52]} 11. Ke2 {[%clk 0:03:00]}  f5 {[%clk 0:02:52]} 12. exf6 {[%clk 0:03:00]}  Nxf6 {[%clk 0:02:52]} 13. Be3 {[%clk 0:03:01]}  c5 {[%clk 0:02:36]} 14. Nxf6+ {[%clk 0:02:46]}  gxf6 {[%clk 0:02:35]} 15. Kf2 {[%clk 0:02:47]}  Bb7 {[%clk 0:02:28]} 16. a3 {[%clk 0:02:44]}  Ba5 {[%clk 0:02:28]} 17. b4 {[%clk 0:02:45]}  Rg8 {[%clk 0:02:09]} 18. bxa5 {[%clk 0:02:43]}  Qb2+ {[%clk 0:02:08]} 19. Bd2 {[%clk 0:02:25]}  Qd4+ {[%clk 0:01:56]} 20. Be3 {[%clk 0:02:25]}  Qb2+ {[%clk 0:01:50]} 21. Ke1 {[%clk 0:01:51]}  Bxg2 {[%clk 0:01:31]} 22. Rg1 {[%clk 0:01:49]}  Ke7 {[%clk 0:01:21]} 23. Bxc5+ {[%clk 0:01:36]}  Ke8 {[%clk 0:00:56]} 24. Qd4 {[%clk 0:01:34]}  Rb8 {[%clk 0:00:36]} 25. Rd1 {[%clk 0:01:10]}  Rb7 {[%clk 0:00:13]} 26. Qxb2 {[%clk 0:01:03]}  Rxb2 {[%clk 0:00:13]} 27. Bf2 {[%clk 0:01:00]}  Kf7 {[%clk 0:00:03]} 28. Rxg2 {[%clk 0:00:59]} 1-0


[Site "https://www.chess.com"]

[Event "Titled Tuesday Blitz August 15 Early 2023"]
[White "Zepeda Berlanga, Jan Enrique"]
[Black "Polaczek, Richard"]
[WhiteFideId "5132355"]
[BlackFideId "200026"]
[WhiteElo "1972"]
[BlackElo "2344"]
[Result "0-1"]
[Round "7"]
[TimeControl "180+1"]
[Date "2023.08.15"]
[WhiteClock "0:00:00"]
[BlackClock "0:00:19"]
[Board "167"]

1. c4 {[%clk 0:03:00]}  e6 {[%clk 0:02:58]} 2. Nf3 {[%clk 0:02:58]}  Nf6 {[%clk 0:02:57]} 3. g3 {[%clk 0:02:58]}  d5 {[%clk 0:02:56]} 4. Nc3 {[%clk 0:02:54]}  d4 {[%clk 0:02:55]} 5. Nb1 {[%clk 0:02:52]}  Nc6 {[%clk 0:02:51]} 6. d3 {[%clk 0:02:50]}  e5 {[%clk 0:02:49]} 7. Bg2 {[%clk 0:02:48]}  Be7 {[%clk 0:02:45]} 8. a3 {[%clk 0:02:46]}  a5 {[%clk 0:02:44]} 9. O-O {[%clk 0:02:45]}  O-O {[%clk 0:02:43]} 10. Bg5 {[%clk 0:02:35]}  Nd7 {[%clk 0:02:38]} 11. Bxe7 {[%clk 0:02:32]}  Qxe7 {[%clk 0:02:38]} 12. e3 {[%clk 0:02:29]}  Nc5 {[%clk 0:02:30]} 13. Re1 {[%clk 0:02:12]}  Qd8 {[%clk 0:02:20]} 14. exd4 {[%clk 0:02:01]}  exd4 {[%clk 0:02:19]} 15. Qc2 {[%clk 0:01:58]}  Bf5 {[%clk 0:02:11]} 16. Bf1 {[%clk 0:01:47]}  Qf6 {[%clk 0:01:54]} 17. Nbd2 {[%clk 0:01:38]}  Qg6 {[%clk 0:01:44]} 18. Nh4 {[%clk 0:01:27]}  Bxd3 {[%clk 0:01:42]} 19. Nxg6 {[%clk 0:01:21]}  Bxc2 {[%clk 0:01:42]} 20. Nxf8 {[%clk 0:01:20]}  Kxf8 {[%clk 0:01:42]} 21. b4 {[%clk 0:01:19]}  axb4 {[%clk 0:01:35]} 22. axb4 {[%clk 0:01:20]}  Rxa1 {[%clk 0:01:34]} 23. Rxa1 {[%clk 0:01:17]}  Nxb4 {[%clk 0:01:34]} 24. f4 {[%clk 0:01:03]}  d3 {[%clk 0:01:20]} 25. Bg2 {[%clk 0:00:55]}  Nb3 {[%clk 0:01:10]} 26. Nxb3 {[%clk 0:00:49]}  Bxb3 {[%clk 0:01:09]} 27. c5 {[%clk 0:00:42]}  d2 {[%clk 0:00:55]} 28. Bf3 {[%clk 0:00:42]}  Na2 {[%clk 0:00:44]} 29. Kf2 {[%clk 0:00:29]}  Nc3 {[%clk 0:00:38]} 30. Ke3 {[%clk 0:00:15]}  d1=Q {[%clk 0:00:34]} 31. Bxd1 {[%clk 0:00:15]}  Nxd1+ {[%clk 0:00:33]} 32. Kd2 {[%clk 0:00:13]}  Nf2 {[%clk 0:00:31]} 33. Ke3 {[%clk 0:00:13]}  Ng4+ {[%clk 0:00:31]} 34. Kf3 {[%clk 0:00:12]}  Nxh2+ {[%clk 0:00:30]} 35. Kg2 {[%clk 0:00:10]}  Ng4 {[%clk 0:00:29]} 36. Kf3 {[%clk 0:00:07]}  f5 {[%clk 0:00:29]} 37. Ke2 {[%clk 0:00:04]}  Bd5 {[%clk 0:00:28]} 38. Rd1 {[%clk 0:00:04]}  Nf6 {[%clk 0:00:22]} 39. Ke3 {[%clk 0:00:03]}  Ke7 {[%clk 0:00:21]} 40. Kd4 {[%clk 0:00:03]}  Bc6 {[%clk 0:00:20]} 41. Re1+ {[%clk 0:00:00]}  Be4 {[%clk 0:00:19]} 0-1


[Site "https://www.chess.com"]

[Event "Titled Tuesday Blitz August 15 Early 2023"]
[White "Wilson, Otis"]
[Black "Ivanov, Alexey"]
[WhiteFideId "30904021"]
[BlackFideId "4167635"]
[WhiteElo "1986"]
[BlackElo "2574"]
[Result "0-1"]
[Round "7"]
[TimeControl "180+1"]
[Date "2023.08.15"]
[WhiteClock "0:00:00"]
[BlackClock "0:01:57"]
[Board "168"]

1. d4 {[%clk 0:02:54]}  c6 {[%clk 0:03:00]} 2. c4 {[%clk 0:02:54]}  d5 {[%clk 0:03:01]} 3. cxd5 {[%clk 0:02:55]}  cxd5 {[%clk 0:03:01]} 4. Nc3 {[%clk 0:02:56]}  Nf6 {[%clk 0:03:02]} 5. Nf3 {[%clk 0:02:57]}  e6 {[%clk 0:03:02]} 6. Bf4 {[%clk 0:02:58]}  Be7 {[%clk 0:03:02]} 7. e3 {[%clk 0:02:57]}  O-O {[%clk 0:03:03]} 8. Bd3 {[%clk 0:02:58]}  Nc6 {[%clk 0:03:04]} 9. a3 {[%clk 0:02:58]}  a6 {[%clk 0:03:03]} 10. h3 {[%clk 0:02:57]}  b5 {[%clk 0:03:02]} 11. Rc1 {[%clk 0:02:56]}  Bb7 {[%clk 0:03:03]} 12. O-O {[%clk 0:02:55]}  Rc8 {[%clk 0:03:03]} 13. Qe2 {[%clk 0:02:32]}  Na5 {[%clk 0:03:02]} 14. Rfd1 {[%clk 0:02:30]}  Nc4 {[%clk 0:03:01]} 15. Ne5 {[%clk 0:02:28]}  Qb6 {[%clk 0:03:00]} 16. g4 {[%clk 0:02:17]}  Rfd8 {[%clk 0:02:58]} 17. f3 {[%clk 0:02:09]}  Nxe5 {[%clk 0:02:55]} 18. Bxe5 {[%clk 0:02:07]}  Nd7 {[%clk 0:02:50]} 19. Bh2 {[%clk 0:01:57]}  Bd6 {[%clk 0:02:49]} 20. Bxd6 {[%clk 0:01:47]}  Qxd6 {[%clk 0:02:49]} 21. f4 {[%clk 0:01:48]}  Nb6 {[%clk 0:02:48]} 22. g5 {[%clk 0:01:40]}  Nc4 {[%clk 0:02:46]} 23. Re1 {[%clk 0:01:32]}  g6 {[%clk 0:02:41]} 24. h4 {[%clk 0:01:31]}  Bc6 {[%clk 0:02:40]} 25. Rc2 {[%clk 0:01:28]}  Rb8 {[%clk 0:02:38]} 26. h5 {[%clk 0:01:05]}  Rb7 {[%clk 0:02:33]} 27. Qg4 {[%clk 0:00:55]}  Bd7 {[%clk 0:02:28]} 28. Qh4 {[%clk 0:00:54]}  Rc8 {[%clk 0:02:25]} 29. Rh2 {[%clk 0:00:53]}  Be8 {[%clk 0:02:23]} 30. hxg6 {[%clk 0:00:53]}  fxg6 {[%clk 0:02:23]} 31. e4 {[%clk 0:00:42]}  Rg7 {[%clk 0:02:21]} 32. f5 {[%clk 0:00:20]}  dxe4 {[%clk 0:02:12]} 33. Nxe4 {[%clk 0:00:07]}  Qxd4+ {[%clk 0:02:12]} 34. Rf2 {[%clk 0:00:04]}  Kh8 {[%clk 0:01:58]} 35. Nf6 {[%clk 0:00:00]}  Qxh4 {[%clk 0:01:57]} 0-1


[Site "https://www.chess.com"]